Cogmind - Beta 10.2 --- EXPLORER MODE // 2022.03.10 @ 23:11:39 Player: Ozymandiaswept Result: Destroyed by G-67 Veteran with Electrolaser Performance ------------- Evolutions (7) 3500 Regions Visited (13) 2600 Robots Destroyed (134) 670 Value Destroyed (6471) 6471 Prototype IDs (0) 0 Alien Tech Used (0) 0 Bonus (1273) 1273 TOTAL SCORE: 14514 Bonus ------- High Alert Combat Kills 201 Follower Combat Kills 372 Entered Garrisons 200 Used RIF Installer 500 Cogmind --------- Core Integrity 0/1300 Matter 280/300 Energy 170/170 System Corruption 3% Temperature Cool (0) Movement Treading (165) Location -3/Research Parts ------- > --- POWER (3) -------- Micro Fission Core > --- PROPULSION (4) --- Improved Heavy Treads Armored Heavy Treads > --- UTILITY (11) ----- (None) > --- WEAPON (4) ------- (None) > --- INVENTORY (4) ---- Heavy Beamcaster Heavy Beamcaster Peak State ------------ > --- POWER ------------ Angular Momentum Engine Neutrino Core Micro Fission Core > --- PROPULSION ------- Medium Treads Advanced Medium Treads Improved Heavy Treads > --- UTILITY ---------- Advanced Heat Sink Improved Cooling System Large Storage Unit Improved Targeting Computer Improved Armor Integrity Analyzer Particle Charger Improved Heavy Armor Plating Damper Plating > --- WEAPON ----------- Improved Arc Projector Heavy Beamcaster Heavy Phase Cannon Improved Proton Missile Launcher > --- INVENTORY -------- Light Fission Core Micro Fission Core Light Treads Improved Medium Treads Improved Arc Projector Heavy Beamcaster Slug Cannon [Rating: 116] Favorites ----------- Power Angular Momentum Engine Engine Angular Momentum Engine Power Core Nuclear Core Reactor Light Antimatter Reactor Propulsion Light Treads Treads Light Treads Leg Myomer Leg Hover Unit Improved Antigrav System Flight Unit Field Propulsion Drive Utility Large Storage Unit Device Improved Cooling System Storage Large Storage Unit Processor Improved Targeting Computer Hackware Relay Coupler [Specialist] Protection Hardened Heavy Armor Plating Weapon EM Pulse Gun Energy Gun EM Pulse Gun Energy Cannon Improved EM Pulse Cannon Ballistic Gun Gauss Rifle Ballistic Cannon Linear Accelerator Launcher Improved Proton Missile Launcher Special Weapon Remote Datajack Impact Weapon Power Maul Build | -11 -10 -9 -9 -8 -7 -6 -6 -5 -5 -5 -5 -4 -3 ------- Run | Scr Mat Mat Min Mat Fac Fac Gar Fac Was Fac Ext Fac Res Slots Evolved 15 | . 1 2 . 2 2 2 . 2 . . . 2 2 Power 2 | . . 1 . . . 1 . . . . . . . Propulsion 2 | . . 1 . . . . . . . . . . 1 Utility 9 | . 1 . . 1 1 1 . 2 . . . 2 1 Weapon 2 | . . . . 1 1 . . . . . . . . Parts Attached 131 | 5 7 9 3 9 16 14 20 3 5 2 8 3 27 Power 27 | 1 1 2 1 2 5 4 3 . 2 1 2 . 3 Engine 15 | 1 1 2 1 2 3 2 2 . 1 . . . . Core 11 | . . . . . 2 2 1 . 1 1 2 . 2 Reactor 1 | . . . . . . . . . . . . . 1 Propulsion 42 | 2 2 2 . 4 5 3 5 . 1 1 . . 17 Treads 33 | 2 2 2 . 4 5 3 5 . 1 1 . . 8 Leg 1 | . . . . . . . . . . . . . 1 Wheel . | . . . . . . . . . . . . . . Hover 5 | . . . . . . . . . . . . . 5 Flight 3 | . . . . . . . . . . . . . 3 Utility 33 | 2 1 3 1 1 4 3 7 2 1 . 2 2 4 Device 16 | . . 3 . . 1 3 4 . 1 . 1 1 2 Storage 2 | 1 1 . . . . . . . . . . . . Processor 4 | . . . . 1 2 . . . . . 1 . . Hackware 5 | . . . . . 1 . 2 2 . . . . . Protection 6 | 1 . . 1 . . . 1 . . . . 1 2 Artifact . | . . . . . . . . . . . . . . Weapon 29 | . 3 2 1 2 2 4 5 1 1 . 4 1 3 Energy Gun 14 | . 3 1 . 1 . 2 2 . 1 . 1 1 2 Energy Cannon 4 | . . 1 1 . . 1 . . . . 1 . . Ballistic Gun 2 | . . . . . 1 . 1 . . . . . . Ballistic Cannon 2 | . . . . . . . . . . . 1 . 1 Launcher 5 | . . . . . 1 1 1 1 . . 1 . . Special Weapon 1 | . . . . . . . 1 . . . . . . Impact Weapon 1 | . . . . 1 . . . . . . . . . Slashing Weapon . | . . . . . . . . . . . . . . Piercing Weapon . | . . . . . . . . . . . . . . Special Melee Weapon . | . . . . . . . . . . . . . . Unidentified Prototypes . | . . . . . . . . . . . . . . Parts Lost 40 | . . 1 . 1 4 6 17 . . . 3 . 8 Power 11 | . . . . . 2 1 5 . . . . . 3 Propulsion 5 | . . . . . . . 5 . . . . . . Utility 9 | . . . . . . 1 3 . . . 1 . 4 Weapon 15 | . . 1 . 1 2 4 4 . . . 2 . 1 Highest Loss Streak 11 | . . 1 . 1 2 2 11 . . . 1 . 3 Average Slot Usage (%) 81 | . 75 92 98 87 85 83 77 80 84 83 84 79 58 Engine 8 | . 9 19 20 16 6 7 8 5 10 11 6 5 2 Core 4 | . . . . . 4 6 3 . 5 5 9 10 8 Treads 17 | . 24 29 30 24 20 18 16 16 12 11 11 10 7 Device 8 | . . 12 18 . 1 14 13 11 11 11 8 14 5 Storage 6 | . 12 10 10 8 7 6 6 5 5 5 5 5 3 Processor 8 | . . . . 5 15 13 11 5 5 5 7 10 6 Hackware 3 | . . . . . . . 1 19 16 16 16 . . Protection 2 | . 7 . . 8 5 . 3 . . . . 5 5 Energy Gun 6 | . 21 18 10 7 1 2 3 5 5 5 5 10 5 Energy Cannon 2 | . . 1 10 8 3 2 1 . . . 1 5 1 Ballistic Gun 1 | . . . . . 6 . 3 1 . . . . . Launcher 3 | . . . . . 4 4 1 3 5 5 4 5 3 Special Weapon 1 | . . . . . . . . 5 5 5 4 . . Impact Weapon 1 | . . . . 8 7 3 . . . . . . . Naked Turns . | . . . . . . . . . . . . . . Heaviest Build 142 | 16 28 42 55 59 68 61 62 48 73 73 79 127 142 Greatest Support 135 | 40 40 63 63 63 68 78 88 60 90 100 100 100 135 Greatest Overweight (x) 44 | . 6 . . . 1 . 9 . 1 . . 1 44 Average Overweight (x) . | . . . . . . . . . . . . 1 . Largest Inventory Capacity 14 | 8 14 10 10 10 10 10 10 10 10 10 10 10 10 Average Capacity 9 | 7 9 10 10 10 10 10 10 10 10 10 10 10 9 Most Carried 10 | . 1 5 7 8 10 7 8 4 9 10 10 10 10 Average Carried 5 | . . 3 5 6 7 4 4 2 6 9 9 5 6 Final Capacity 10 | 8 10 10 10 10 10 10 10 10 10 10 10 10 4 Final Carried 10 | . 1 5 6 8 6 7 4 4 9 9 10 8 2 Class Distribution -------------------- 54% | Hacker-Mutant 17% | Generator-Mutant 13% | Scavenger-Mutant 11% | Generator-Gunner Dominant Class ---------------- Hacker-Mutant | -10/Materials Hacker-Mutant | -9/Materials Hacker-Mutant | -9/Mines Hacker-Mutant | -8/Materials Hacker-Mutant | -7/Factory Hacker-Mutant | -6/Factory Scavenger-Mutant | -6/Garrison Scavenger-Mutant | -5/Factory Generator-Mutant | -5/Waste Generator-Mutant | -5/Factory Generator-Mutant | -5/Extension Generator-Gunner | -4/Factory Generator-Gunner | -3/Research Resources | -11 -10 -9 -9 -8 -7 -6 -6 -5 -5 -5 -5 -4 -3 ----------- Run | Scr Mat Mat Min Mat Fac Fac Gar Fac Was Fac Ext Fac Res Matter Collected 2751 | 222 85 103 30 90 478 169 406 . 255 20 171 30 692 Remotely . | . . . . . . . . . . . . . . Salvage Created 7118 | . 37 748 45 747 947 191 948 . 903 . 683 238 1631 Parts 283 | . 6 33 2 32 32 5 27 . 11 . 40 7 88 Haulers Intercepted . | . . . . . . . . . . . . . . Recyclers Shooed 3 | . . . . . . . . . . . . . 3 Parts Field Recycled . | . . . . . . . . . . . . . . Retrieved Matter . | . . . . . . . . . . . . . . Parts Self-Destructed . | . . . . . . . . . . . . . . Prevented . | . . . . . . . . . . . . . . Kills | -11 -10 -9 -9 -8 -7 -6 -6 -5 -5 -5 -5 -4 -3 ------- Run | Scr Mat Mat Min Mat Fac Fac Gar Fac Was Fac Ext Fac Res Combat Hostiles Destroyed 112 | . 2 14 1 10 17 5 19 . 4 . 13 3 24 Melee 3 | . . . . . 1 1 1 . . . . . . Guns 39 | . 2 11 . 2 6 . 13 . . . 2 1 2 Cannons 22 | . . . 1 6 . 1 4 . . . 1 2 7 AOE 33 | . . 2 . 1 6 1 1 . 4 . 9 . 9 Classes Destroyed 14 | . 1 5 . 1 3 . . . 1 . 2 . 1 Worker 2 | . . 1 . . . . . . . . 1 . . Builder 8 | . . . . . 2 . . . . . 2 . 4 Tunneler 1 | . . . . . . . . . . . 1 . . Recycler 3 | . . . . 1 2 . . . . . . . . Watcher 8 | . . 1 . 3 2 . . . . . 1 . 1 Swarmer 19 | . 2 . . . . 2 3 . . . 4 . 8 Grunt 49 | . . 7 1 5 8 1 13 . . . 6 2 6 Brawler 1 | . . . . . 1 . . . . . . . . Duelist 5 | . . 3 . 2 . . . . . . . . . Sentry 17 | . . 4 . 3 3 1 2 . . . 2 1 1 Hunter 2 | . . . . . . . . . . . . . 2 Programmer 14 | . . . . . 5 1 1 . . . . . 7 Behemoth 1 | . . . . . . . . . . . 1 . . Compactor 4 | . . . . . . . . . 4 . . . . Best Kill Streak 12 | . 2 3 1 5 5 2 6 . 4 . 7 2 12 Combat Bots Only 11 | . 2 2 1 3 5 2 6 . 4 . 5 2 11 Max Kills in Single Turn 5 | . 1 1 1 3 2 1 2 . 1 . 5 1 2 Gunslinging 1 | . . . . . . . 1 . . . . . . Exploded 3 | . . 1 . 1 2 1 1 . 1 . 3 . 1 Melee 1 | . . . . . 1 1 1 . . . . . . Uniques/NPCs Destroyed . | . . . . . . . . . . . . . . Combat | -11 -10 -9 -9 -8 -7 -6 -6 -5 -5 -5 -5 -4 -3 -------- Run | Scr Mat Mat Min Mat Fac Fac Gar Fac Was Fac Ext Fac Res Damage Taken 8721 | . 50 463 7 234 1245 795 1906 38 10 . 749 176 3048 Core 2051 | . 13 87 . 9 144 51 338 . . . 91 14 1304 Absorbed by Shields 246 | . . . . . . . 231 9 . . 6 . . Core Remaining (%) 86 | 100 94 . 78 98 79 . 54 . . . 90 98 . Volleys Fired 282 | . 2 39 1 26 39 13 53 3 10 . 38 7 51 Largest 4 | . 2 2 2 2 3 2 2 1 1 . 2 3 4 Hottest 287 | . 80 96 109 119 147 115 108 30 46 . 179 244 287 Shots Fired 496 | . 4 77 2 46 67 15 81 3 10 . 43 21 127 Gun 315 | . 4 73 1 20 46 3 55 . . . 28 14 71 Cannon 110 | . . 4 1 26 10 11 19 . . . 5 7 27 Launcher 68 | . . . . . 11 1 7 . 10 . 10 . 29 Special 3 | . . . . . . . . 3 . . . . . Kinetic 87 | . . . . . 40 . 29 . . . 1 . 17 Thermal 138 | . . . . . . 11 45 . . . 32 14 36 Explosive 32 | . . . . . 11 1 7 . 10 . 3 . . Electromagnetic 236 | . 4 77 2 46 16 3 . . . . 7 7 74 Robot Hit Streak 53 | . 4 26 28 36 53 12 43 2 12 . 32 14 18 Robot Miss Streak 2 | . . 2 . 1 1 1 2 . . . 1 1 2 Penetration Max 1 | . . . . . 1 . . . . . . . . Secondary Targets 4 | . . . . . . . 4 . . . . . . Max Gunslinging Chain 1 | . . . . . . . 1 . . . . . . Shots Hit Robots 484 | . 4 69 2 41 100 34 62 2 10 . 38 18 104 Core Hits 327 | . 2 29 1 19 43 10 103 . 7 . 28 8 77 Critical Hits 6 | . . . . 1 2 . . . . . . . 3 Critical Kills 1 | . . . . . . . . . . . . . 1 Critical Parts Destroyed 5 | . . . . 1 2 . . . . . . . 2 Melee Attacks 62 | . . . . . 42 20 . . . . . . . Impact 62 | . . . . . 42 20 . . . . . . . Slashing . | . . . . . . . . . . . . . . Piercing . | . . . . . . . . . . . . . . Sneak Attacks 1 | . . . . . 1 . . . . . . . . Combat Hostiles . | . . . . . . . . . . . . . . Follow-up Attacks . | . . . . . . . . . . . . . . Damage Inflicted 18136 | . 46 1318 45 1182 3687 1224 2500 . 1354 . 2365 529 3886 Guns 5169 | . 46 851 13 341 931 23 1119 . . . 661 250 934 Cannons 3200 | . . 94 32 701 211 351 489 . . . 164 279 879 Explosions 7740 | . . 373 . 140 1145 270 856 . 1354 . 1540 . 2062 Melee 1975 | . . . . . 1400 575 . . . . . . . Ramming 52 | . . . . . . 5 36 . . . . . 11 Kinetic 2098 | . . . . . 819 . 676 . . . . . 603 Thermal 4768 | . . 373 . . 383 557 932 . . . 1096 434 993 Explosive 3876 | . . . . 140 762 64 856 . 1354 . 700 . . Electromagnetic 5367 | . 46 945 45 1042 323 23 . . . . 569 95 2279 Impact 1975 | . . . . . 1400 575 . . . . . . . Slashing . | . . . . . . . . . . . . . . Piercing . | . . . . . . . . . . . . . . Highest Corruption 10 | . . . . . 10 3 3 . . . . . 3 Average Corruption 4 | . . . . . 8 2 3 . . . . . 2 Corruption Purged . | . . . . . . . . . . . . . . Effects 77 | . . . . . 43 4 25 . . . . . 5 Message Errors 8 | . . . . . 3 2 3 . . . . . . Matter Fused 18 | . . . . . 9 1 6 . . . . . 2 Heat Flow Errors 5 | . . . . . 1 . 4 . . . . . . Energy Discharges 11 | . . . . . 5 . 5 . . . . . 1 Parts Rejected 3 | . . . . . 3 . . . . . . . . Data Loss (minor) 10 | . . . . . 5 1 2 . . . . . 2 Data Loss (major) 3 | . . . . . 3 . . . . . . . . Misfires 2 | . . . . . 2 . . . . . . . . Targeting Errors 15 | . . . . . 11 . 4 . . . . . . Weapon Failures 2 | . . . . . 1 . 1 . . . . . . Overload Shots . | . . . . . . . . . . . . . . Overflow Damage 1100 | . . 14 . 72 414 270 83 . 84 . 74 15 74 Projectiles 221 | . . 14 . 72 . 60 13 . . . . 15 47 Explosions 501 | . . . . . 115 131 70 . 84 . 74 . 27 Melee 378 | . . . . . 299 79 . . . . . . . Knockbacks 21 | . . . . . 12 2 . . . . . . 7 Impact 13 | . . . . . 11 2 . . . . . . . Kinetic 6 | . . . . . . . . . . . . . 6 Secondary 2 | . . . . . 1 . . . . . . . 1 Self-Inflicted Damage 480 | . . 31 . 42 106 171 88 . 11 . . . 31 Shots 21 | . . 1 . 1 6 5 3 . 1 . . . 4 Rammed 22 | . . . . . . 3 18 . . . . . 1 Targets Rammed 22 | . . . . . . 3 18 . . . . . 1 Kicked . | . . . . . . . . . . . . . . Crushed . | . . . . . . . . . . . . . . Highest Temperature 1042 | . 54 90 57 487 342 75 250 . . . 336 306 1042 Average Temperature 184 | . 28 27 32 170 118 34 35 . . . 175 113 283 Received Heat Transfer 2156 | . . 258 6 72 267 126 970 7 . . 156 36 258 Effects 107 | . . . . 10 . . . . . . 5 . 92 Shutdowns 39 | . . . . 4 . . . . . . 2 . 33 Energy Bleed 10 | . . . . 1 . . . . . . . . 9 Interference 16 | . . . . . . . . . . . 3 . 13 Matter Decay 5 | . . . . . . . . . . . . . 5 Short Circuit 12 | . . . . 1 . . . . . . . . 11 Damage (minor) 4 | . . . . . . . . . . . . . 4 Damage (major) 15 | . . . . 4 . . . . . . . . 11 Damage (core) 6 | . . . . . . . . . . . . . 6 Siege Activations . | . . . . . . . . . . . . . . Robots Corrupted 12 | . . 1 . 2 1 . . . . . 1 . 7 Combat Hostiles 10 | . . 1 . 1 1 . . . . . 1 . 6 Parts Fried 39 | . . 11 . 11 3 1 . . . . 1 . 12 Impact Corruptions 25 | . . . . . 17 8 . . . . . . . Robots Melted 1 | . . . . . . 1 . . . . . . . Combat Hostiles 1 | . . . . . . 1 . . . . . . . Parts Melted 13 | . . . . . 3 1 5 . . . 2 . 2 Heat Transferred 6185 | . . 600 . . 300 557 1601 . . . 1497 481 1149 Parts Sabotaged . | . . . . . . . . . . . . . . Parts Stolen . | . . . . . . . . . . . . . . Parts Stripped . | . . . . . . . . . . . . . . Power Chain Reactions 12 | . . 4 . . 2 . . . . . 3 . 3 Missiles Intercepted . | . . . . . . . . . . . . . . Alert | -11 -10 -9 -9 -8 -7 -6 -6 -5 -5 -5 -5 -4 -3 ------- Run | Scr Mat Mat Min Mat Fac Fac Gar Fac Was Fac Ext Fac Res Peak Influence 807 | . 53 287 42 249 348 272 807 329 162 40 285 147 452 Initial 314 | . . 15 12 11 49 124 17 314 78 . 14 72 57 Average 160 | . 37 113 14 90 131 93 431 322 100 12 114 86 190 Maximum Alert Level 3 | . . 1 . 1 1 1 3 1 . . 1 . 2 Low Security (%) 72 | 100 100 83 100 87 77 89 22 . 100 100 82 100 57 Level 1 20 | . . 16 . 12 22 10 29 100 . . 17 . 38 Level 2 3 | . . . . . . . 25 . . . . . 4 Level 3 3 | . . . . . . . 22 . . . . . . Level 4 . | . . . . . . . . . . . . . . Level 5 . | . . . . . . . . . . . . . . High Security . | . . . . . . . . . . . . . . Max Security . | . . . . . . . . . . . . . . Squads Dispatched 28 | . . 1 1 3 7 2 . . . 1 4 2 7 Investigation 2 | . . . 1 . . . . . . . 1 . . Extermination 7 | . . . . . 3 2 . . . . . . 2 Reinforcement 15 | . . 1 . 3 1 . . . . 1 3 1 5 Assault 1 | . . . . . 1 . . . . . . . . Garrison 3 | . . . . . 2 . . . . . . 1 . Intercept . | . . . . . . . . . . . . . . Construction Impeded 7 | . . . . . . . . . . . 2 1 4 Haulers Reinforced . | . . . . . . . . . . . . . . Stealth | -11 -10 -9 -9 -8 -7 -6 -6 -5 -5 -5 -5 -4 -3 --------- Run | Scr Mat Mat Min Mat Fac Fac Gar Fac Was Fac Ext Fac Res Distress Signals 10 | . . . . 2 . 1 . . . 1 3 . 3 Communications Jammed . | . . . . . . . . . . . . . . Distress Signals . | . . . . . . . . . . . . . . Times Spotted 190 | . 2 21 2 20 25 13 28 2 4 1 25 5 42 Peak Tracking Total 10 | . 2 4 2 4 3 3 10 1 2 2 5 3 9 Tactical Retreats 18 | . . . . 1 3 2 5 . . . 2 . 5 Traps | -11 -10 -9 -9 -8 -7 -6 -6 -5 -5 -5 -5 -4 -3 ------- Run | Scr Mat Mat Min Mat Fac Fac Gar Fac Was Fac Ext Fac Res Traps Triggered 20 | . 4 1 . 2 3 1 4 1 . . 1 . 3 Indirectly . | . . . . . . . . . . . . . . Trap Hack Attempts . | . . . . . . . . . . . . . . Triggered . | . . . . . . . . . . . . . . Disarmed . | . . . . . . . . . . . . . . Reprogrammed . | . . . . . . . . . . . . . . Reused . | . . . . . . . . . . . . . . Traps Extracted . | . . . . . . . . . . . . . . Installed . | . . . . . . . . . . . . . . Triggered . | . . . . . . . . . . . . . . Machines | -11 -10 -9 -9 -8 -7 -6 -6 -5 -5 -5 -5 -4 -3 ---------- Run | Scr Mat Mat Min Mat Fac Fac Gar Fac Was Fac Ext Fac Res Machines Disabled 13 | . . . . 2 2 4 2 . . . 2 . 1 Max in Single Turn 4 | . . . . 2 2 4 1 . . . 1 . 1 Garrison Access 2 | . . . . . 2 . . . . . . . . Garrison Relay 2 | . . . . . . . 2 . . . . . . Machines Sabotaged . | . . . . . . . . . . . . . . Garrisons Compromised . | . . . . . . . . . . . . . . Overloaded Fab Kills . | . . . . . . . . . . . . . . Fab Network Shutdowns . | . . . . . . . . . . . . . . Hacking | -11 -10 -9 -9 -8 -7 -6 -6 -5 -5 -5 -5 -4 -3 --------- Run | Scr Mat Mat Min Mat Fac Fac Gar Fac Was Fac Ext Fac Res Machines Accessed 19 | . 1 1 1 3 2 3 . . . . 6 . 2 Terminals 16 | . 1 1 . 3 1 2 . . . . 6 . 2 Fabricators . | . . . . . . . . . . . . . . Repair Stations . | . . . . . . . . . . . . . . Recycling Units . | . . . . . . . . . . . . . . Scanalyzers . | . . . . . . . . . . . . . . Garrison Access 2 | . . . . . 1 1 . . . . . . . Total Hacks 30 | . 3 3 1 4 2 4 . . . . 9 . 4 Successful 26 | . 2 3 1 4 1 4 . . . . 7 . 4 Failed 4 | . 1 . . . 1 . . . . . 2 . . Catastrophic . | . . . . . . . . . . . . . . Database Lockouts . | . . . . . . . . . . . . . . Manual . | . . . . . . . . . . . . . . Terminals 27 | . 3 3 . 4 1 3 . . . . 9 . 4 Fabricators . | . . . . . . . . . . . . . . Repair Stations . | . . . . . . . . . . . . . . Recycling Units . | . . . . . . . . . . . . . . Scanalyzers . | . . . . . . . . . . . . . . Garrison Access 2 | . . . . . 1 1 . . . . . . . Terminal Hacks 24 | . 2 3 1 4 . 3 . . . . 7 . 4 Record 16 | . . 3 . 4 . 1 . . . . 4 . 4 Robot Analysis 2 | . 2 . . . . . . . . . . . . Open Door 4 | . . . 1 . . . . . . . 3 . . Maintenance Status 1 | . . . . . . 1 . . . . . . . Recall Investigation 1 | . . . . . . 1 . . . . . . . Fabricator Hacks . | . . . . . . . . . . . . . . Repair Station Hacks . | . . . . . . . . . . . . . . Recycling Unit Hacks . | . . . . . . . . . . . . . . Scanalyzer . | . . . . . . . . . . . . . . Garrison Access Hacks 2 | . . . . . 1 1 . . . . . . . Unlock Access 1 | . . . . . . 1 . . . . . . . Seal Access 1 | . . . . . 1 . . . . . . . . Unauthorized Hacks . | . . . . . . . . . . . . . . Terminals . | . . . . . . . . . . . . . . Fabricators . | . . . . . . . . . . . . . . Repair Stations . | . . . . . . . . . . . . . . Recycling Units . | . . . . . . . . . . . . . . Scanalyzers . | . . . . . . . . . . . . . . Garrison Access . | . . . . . . . . . . . . . . Data Cores Recovered . | . . . . . . . . . . . . . . Used . | . . . . . . . . . . . . . . Hacking Detections 10 | . . . . 3 . 1 . . . . 5 . 1 Full Trace Events . | . . . . . . . . . . . . . . Feedback Events . | . . . . . . . . . . . . . . Feedback Blocked . | . . . . . . . . . . . . . . Robot Schematics Acquired . | . . . . . . . . . . . . . . Robots Built . | . . . . . . . . . . . . . . Matter . | . . . . . . . . . . . . . . Time . | . . . . . . . . . . . . . . Total Robot Build Rating . | . . . . . . . . . . . . . . Part Schematics Acquired . | . . . . . . . . . . . . . . Parts Built . | . . . . . . . . . . . . . . Matter . | . . . . . . . . . . . . . . Time . | . . . . . . . . . . . . . . Total Part Build Rating . | . . . . . . . . . . . . . . Parts Repaired . | . . . . . . . . . . . . . . Time . | . . . . . . . . . . . . . . Parts Recycled . | . . . . . . . . . . . . . . Recycled Matter . | . . . . . . . . . . . . . . Retrieved Matter . | . . . . . . . . . . . . . . Retrieved Components . | . . . . . . . . . . . . . . Parts Scanalyzed . | . . . . . . . . . . . . . . Part Schematics Acquired . | . . . . . . . . . . . . . . Parts Damaged . | . . . . . . . . . . . . . . Bothacking | -11 -10 -9 -9 -8 -7 -6 -6 -5 -5 -5 -5 -4 -3 ------------ Run | Scr Mat Mat Min Mat Fac Fac Gar Fac Was Fac Ext Fac Res Used RIF Installer 1 | . . . . . . . 1 . . . . . . Robots Hacked 1 | . . . . . . . . 1 . . . . . Non-combat . | . . . . . . . . . . . . . . Combat 1 | . . . . . . . . 1 . . . . . Robot Hacks Applied 2 | . . . . . . . . 2 . . . . . streamctrl_high 1 | . . . . . . . . 1 . . . . . formatsys_high 1 | . . . . . . . . 1 . . . . . Relay Couplers Released 9 | . . . . . 2 . 7 . . . . . . Machine Destruction 9 | . . . . . 2 . 7 . . . . . . Attached 4 | . . . . . . . 2 2 . . . . . Robots Rewired . | . . . . . . . . . . . . . . Allies Hacked . | . . . . . . . . . . . . . . Hacks Repelled . | . . . . . . . . . . . . . . Allies | -11 -10 -9 -9 -8 -7 -6 -6 -5 -5 -5 -5 -4 -3 -------- Run | Scr Mat Mat Min Mat Fac Fac Gar Fac Was Fac Ext Fac Res Total Allies 22 | . . . . . . . . 1 19 . 2 . . Largest Group 19 | . . . . . . . . 1 19 13 8 1 . Highest-Rated Group 714 | . . . . . . . . 49 714 459 254 31 . Highest-Rated Ally 50 | . . . . . . . . 49 50 50 50 31 . Total Orders . | . . . . . . . . . . . . . . Ally Attacks 162 | . . . . . . . . . 28 20 104 10 . Total Damage 4508 | . . . . . . . . . 1030 438 2851 189 . Kills 22 | . . . . . . . . . 2 2 18 . . Allies Corrupted . | . . . . . . . . . . . . . . Allies Melted . | . . . . . . . . . . . . . . Intel | -11 -10 -9 -9 -8 -7 -6 -6 -5 -5 -5 -5 -4 -3 ------- Run | Scr Mat Mat Min Mat Fac Fac Gar Fac Was Fac Ext Fac Res Robot Analysis Total 2 | . 2 . . . . . . . . . . . . Derelict Logs Recovered . | . . . . . . . . . . . . . . Drone Launches . | . . . . . . . . . . . . . . Drone Recoveries . | . . . . . . . . . . . . . . Exploration | -11 -10 -9 -9 -8 -7 -6 -6 -5 -5 -5 -5 -4 -3 ------------- Run | Scr Mat Mat Min Mat Fac Fac Gar Fac Was Fac Ext Fac Res Turns Passed 9210 | 67 246 904 362 560 1484 946 1212 249 499 184 1027 231 1239 Spaces Moved 4874 | 39 141 457 218 284 727 516 614 139 285 113 575 105 661 Core 8 | 2 1 . . . . . 2 . . . . . 3 Treads 4544 | 37 140 457 218 284 727 516 612 139 285 113 575 105 336 Legs 73 | . . . . . . . . . . . . . 73 Wheels . | . . . . . . . . . . . . . . Hover 42 | . . . . . . . . . . . . . 42 Flight 207 | . . . . . . . . . . . . . 207 Fastest Speed 34 | 50 160 160 160 160 163 163 160 160 160 160 160 180 34 Average Speed 161 | 154 161 160 160 162 166 163 162 160 163 160 160 180 149 Slowest Speed 2250 | 160 350 160 160 163 190 163 500 160 180 160 160 180 2250 Overloaded Moves . | . . . . . . . . . . . . . . Propulsion Burnouts . | . . . . . . . . . . . . . . Robots Hopped . | . . . . . . . . . . . . . . Cave-ins Triggered . | . . . . . . . . . . . . . . Exploration Rate (%) 28 | 4 26 37 36 41 19 12 63 5 86 5 47 4 18 Regions Visited 13 Branch Regions 2 Pre-discovered Areas . | . . . . . . . . . . . . . . Known Exits Taken 10 | 1 1 1 1 1 1 1 . . . 1 1 1 . Unknown Exits Taken . | . . . . . . . . . . . . . . Scrap Searched . | . . . . . . . . . . . . . . Spaces Dug . | . . . . . . . . . . . . . . Terrain Destroyed 301 | . . 11 . 21 49 50 13 . 125 . 15 . 17 Melee . | . . . . . . . . . . . . . . Projectile 8 | . . . . . 2 . . . . . . . 6 AOE 293 | . . 11 . 21 47 50 13 . 125 . 15 . 11 Terrain Rammed . | . . . . . . . . . . . . . . Walls Destroyed . | . . . . . . . . . . . . . . Machines Disabled . | . . . . . . . . . . . . . . Actions | -11 -10 -9 -9 -8 -7 -6 -6 -5 -5 -5 -5 -4 -3 --------- Run | Scr Mat Mat Min Mat Fac Fac Gar Fac Was Fac Ext Fac Res Total 5680 | 43 152 550 230 335 888 579 732 166 306 117 635 133 814 Wait 212 | . 1 40 2 13 49 12 19 17 . 1 10 14 34 Move 4854 | 38 140 456 217 283 726 515 605 139 284 112 574 104 661 Hop . | . . . . . . . . . . . . . . Pick Up 41 | . 1 3 2 3 7 2 5 2 3 . 4 2 7 Fast Attach 62 | 5 7 6 1 2 3 6 10 1 5 . 2 . 14 Attach 38 | . . 1 . 3 6 4 8 2 . . 2 3 9 Detach 3 | . . 1 . . . . 1 . . . . . 1 Swap 31 | . . 2 2 4 7 4 2 . . 2 4 . 4 Drop 65 | . 1 2 5 1 9 . 3 2 4 2 1 3 32 Fire 282 | . 2 39 1 26 39 13 53 3 10 . 38 7 51 Melee 62 | . . . . . 42 20 . . . . . . . Ram 1 | . . . . . . . . . . . . . 1 Kick . | . . . . . . . . . . . . . . Crush 21 | . . . . . . 3 18 . . . . . . Escape Stasis 8 | . . . . . . . 8 . . . . . . Rewire . | . . . . . . . . . . . . . . Trap . | . . . . . . . . . . . . . . Miscellaneous . | . . . . . . . . . . . . . . Route ------- -11/Scrapyard -10/Materials (discovered 2 exits: *Mat / *Min) -9/Materials (discovered 2 exits: *Min x2) -9/Mines -8/Materials -7/Factory -6/Factory -6/Garrison (discovered 2 exits: *Fac x2) -5/Factory -5/Waste -5/Factory -5/Extension -4/Factory -3/Research History --------- Turn | Location | Event 17 | -11/Scrapyard | Identified exit to Materials 17 | -11/Scrapyard | Discovered exit to Materials (range 15) 68 | -11/Scrapyard | Entered Materials 68 | -10/Materials | Evolved 1 slot: Utility x1 80 | -10/Materials | Identified exit to Mines 80 | -10/Materials | Discovered exit to Mines (range 15) 301 | -10/Materials | Identified exit to Materials 301 | -10/Materials | Discovered exit to Materials (range 8) 314 | -10/Materials | Entered another Materials area 314 | -9/Materials | Evolved 2 slots: Power x1, Propulsion x1 315 | -9/Materials | Build established: Hacker-Mutant 913 | -9/Materials | Identified exit to Mines 913 | -9/Materials | Discovered exit to Mines (range 5) 1136 | -9/Materials | Discovered exit to Mines (range 15) 1218 | -9/Materials | Entered Mines 1238 | -9/Mines | Met a Derelict bent on vengeance 1519 | -9/Mines | Identified exit to Materials 1519 | -9/Mines | Discovered exit to Materials (range 5) 1539 | -9/Mines | Met a Derelict shopkeep closing up shop 1580 | -9/Mines | Entered Materials 1580 | -8/Materials | Evolved 2 slots: Utility x1, Weapon x1 2105 | -8/Materials | Identified exit to Factory 2105 | -8/Materials | Discovered exit to Factory (range 12) 2140 | -8/Materials | Entered Factory 2140 | -7/Factory | Evolved 2 slots: Utility x1, Weapon x1 2200 | -7/Factory | Garrison activated, responded to threat 3225 | -7/Factory | System corruption reached 10% 3510 | -7/Factory | Garrison activated, responded to threat 3595 | -7/Factory | Identified exit to Factory 3595 | -7/Factory | Discovered exit to Factory (range 10) 3624 | -7/Factory | Entered another Factory area 3624 | -6/Factory | Evolved 2 slots: Power x1, Utility x1 4568 | -6/Factory | Identified exit to Garrison 4570 | -6/Factory | Entered Garrison 4634 | -6/Garrison | Triggered checkpoint 4695 | -6/Garrison | Garrison Relay disabled 4802 | -6/Garrison | Triggered checkpoint 4882 | -6/Garrison | Triggered checkpoint 4977 | -6/Garrison | Lost 11 parts (2p4n3u2w) 5082 | -6/Garrison | Identified exit to Factory 5082 | -6/Garrison | Discovered exit to Factory (range 13) 5224 | -6/Garrison | Build established: Scavenger-Mutant 5339 | -6/Garrison | Attempted to access garrison exit controls, blocked by remote lockdown 5502 | -6/Garrison | Triggered checkpoint 5601 | -6/Garrison | Discovered exit to Factory (range 14) 5629 | -6/Garrison | Installed Relay Interface Framework 5707 | -6/Garrison | Garrison Relay disabled 5782 | -6/Garrison | Entered Factory 5782 | -5/Factory | Evolved 2 slots: Utility x2 5889 | -5/Factory | Identified exit to Factory 5889 | -5/Factory | Discovered exit to Factory (range 14) 6031 | -5/Factory | Sucked down chute 6031 | -5/Factory | Entered Waste 6035 | -5/Waste | 1 allies followed down the chute 6105 | -5/Waste | Spotted C-40 Crusher 6182 | -5/Waste | Spotted C-40 Crusher 6189 | -5/Waste | Destroyed C-40 Crusher 6193 | -5/Waste | Spotted C-40 Crusher 6194 | -5/Waste | Destroyed C-40 Crusher 6205 | -5/Waste | Spotted C-40 Crusher 6209 | -5/Waste | Destroyed C-40 Crusher 6213 | -5/Waste | Spotted C-40 Crusher 6216 | -5/Waste | Found Damper Plating 6226 | -5/Waste | Destroyed C-40 Crusher 6259 | -5/Waste | Warlord forces began an assault 6375 | -5/Waste | Spotted C-40 Crusher 6443 | -5/Waste | Build established: Generator-Mutant 6483 | -5/Waste | Identified exit to Factory 6483 | -5/Waste | Discovered exit to Factory (range 12) 6530 | -5/Waste | Entered Factory 6530 | -5/Factory | Accompanied by 13 allies 6692 | -5/Factory | Identified exit to Extension 6692 | -5/Factory | Discovered exit to Extension (range 11) 6714 | -5/Factory | Entered Extension 6714 | -5/Extension | Accompanied by 8 allies 6919 | -5/Extension | Spotted B-75 Beast 6933 | -5/Extension | Allies destroyed B-75 Beast 6972 | -5/Extension | Spotted B-75 Beast 7305 | -5/Extension | Rescued a captive Derelict 7455 | -5/Extension | Rescued a captive Derelict 7679 | -5/Extension | Destroyed B-75 Beast 7704 | -5/Extension | Discovered exit to Factory (range 3) 7741 | -5/Extension | Entered Factory 7741 | -4/Factory | Accompanied by 1 ally 7741 | -4/Factory | Evolved 2 slots: Utility x2 7856 | -4/Factory | Identified exit to Research 7856 | -4/Factory | Discovered exit to Research (range 15) 7948 | -4/Factory | Garrison activated, responded to threat 7972 | -4/Factory | Entered Research 7972 | -3/Research | Evolved 2 slots: Propulsion x1, Utility x1 8057 | -3/Research | Build established: Generator-Gunner 8480 | -3/Research | Lost 3 parts (3u) 8500 | -3/Research | Destroyed 11 combat bots 8635 | -3/Research | Core integrity fell below 50% 8639 | -3/Research | Core integrity fell below 20% 9105 | -3/Research | Lost 3 parts (2p1w) 9145 | -3/Research | Spotted B-90 Cyclops 9211 | -3/Research | Destroyed by G-67 Veteran with Electrolaser Last Messages --------------- 09074_ Lgt. Fission Core destroyed. 09079_ System corrupted: Matter fused (-8). 09086_ Slammed into U-05 Engineer. 09096_ System corrupted: Matter fused (-7). 09098_ Dropped Lrg. Storage Unit. 09104_ Acquired Nuclear Pulse Array. 09107_ W-44 Eye distress signal alerts nearby ally. 09125_ Dropped Hvy. Phase Cannon. 09126_ Acquired Imp. Heavy Treads. 09127_ System corrupted: Component data lost. 09136_ R-10 Processor collects Adv. Heat Sink. 09140_ Acquired 49 matter. 09140_ Acquired 42 matter. 09141_ Acquired 12 matter. 09150_ Connecting with Scanalyzer... 09167_ Dropped Field Propulsion Drive. 09167_ Dropped Nuclear Pulse Array. 09168_ Dropped Q-thruster. 09178_ System corrupted: Component data lost. 09198_ Acquired Arm. Heavy Treads. Map ----- +----------------------------------------------------+ | ?????????????????# +????????????# # / | | ???????########### #????????????# # # | | ???????# """"" # #????????????# # ] ### | | ???????# ""Y"" [# #????????????# # ??## | | ???????# # #????????????# ####### | | ???????# # ##### ## ### | | ???????# # | | ???????# + #######??????# | | ???????# # ###########???#######+## | | ???????# # ## !!#????????????# ## | | ???????########### ## !!#????????????# #? | | ????????????????# | # #?????"""????# #? | | ########????????# # %#?????"""????# #? | | #????????# + ! !###! """"???## # | | #????????# # %[[+%+*!""""???+ + | | "" #????????# # *=###| # # | | """ #????????## ## [=#????? ???# #? | | S" #?????????# ## !]#?????#/#???# #? | | """ #?????????# #####+###+#?????# #???# ! #? | | """ #?????????# #???# #?# ####### ##### #+#? | | #???####### #???# #?# === + | | #??#### # # #???# #?# ################??? | | ###+##############g ##### ### # #?????????? | | %= + #?????????? | | k #### !#?????????? | | [% @ #?#?########?????????? | | ###+######+####### ###+#####???????????????????? | | # # # # ## #???????????????????? | | # # # # ## #???????????????????? | | #""" # "### ## #???????????????????? | | #"""" # "#?# ## #???????????????????? | | #"""" # "#?# ## #???????????????????? | | # """ # T#?# ## #???????????????????? | | # # "#?# #########???????????????????? | | # ] # "#?# #???????????????????????????? | | # ? # "#?# #???????????????????????????? | | ##????#### #?# #???????????????????????????? | | ?????????# ! #?# #???????????????????????????? | | ?????????# #?# #???????????????????????????? | | ?????????######### ##??????????????????????????? | | ????############## ##############??????????????? | | ????# ==# # #??????????????? | | ????# ==!#* # #??????????????? | | ????# [==!!!+ + #??????????????? | | ????# = =|# # #??????????????? | | ????# [#! # #??????????????? | | ????###""" """####[ =######/###+###?????????????#? | | ??????#"""T"""#%#=!== ##### ### ###????########## | | ??????########### %* !######## # | | ????????????????# [[ [! + # | +----------------------------------------------------+ Best States ------------- Heat Dissipation 92 Energy Generation 48 Energy Capacity 700 Matter Stores 300 Matter Capacity 300 Sight Range 16 Robot Scan Range 16 Terrain Scan Density 10 ECM Strength 2 Armor Coverage 1800 Resistance: KI 35 Resistance: TH 35 Resistance: EX 35 Resistance: EM 100 Resistance: I 35 Resistance: S 35 Resistance: P 35 Melee Speed Boost 20 Evasion (%) 63 Targeting Accuracy 6 Core Analysis 6 Armor Integrity Analysis 50 Recoil Reduction 4 Particle Charging 15 Offensive Hacking 30 Relay Coupler Types 126 Relay Coupler Value 4 Item Schematics ----------------- None Robot Schematics ------------------ None Fabricated ------------ Nothing Alien Tech Used ----------------- None Achievements -------------- Slippery One Superinsulated Challenges ------------ None Game ------ Seed LongswordThrusterPick Manual? 0 Play Time 02:12:17 Cumulative 55.8 hours Start 2022.03.08 @ 01:02:32 End 2022.03.10 @ 23:11:39 Sessions 6 Manual Loads 0 Difficulty Explorer Special Mode None Game No. 112 Rogue 105 Adventurer 0 Explorer 7 Win Type - Total 0 Types 0/0/0/0/0/0/0/0/0 Lore% 33 Gallery% 41 Achievement% 28 Wizard Run 0 Options --------- ASCII 0 Keyboard 0 Movement Numpad Keybinds 0 Fullscreen 1 Font 20/SmallcapsGlow Map View 66x50 Tactical HUD 1 Map Filters NONE Filters NONE Steam 1 RUN: 0b64245b-335d-410e-9135-c0738fc03280